[Event "Early-Titled-Tuesday-Blitz-September-05-2023"]
[Site "Chess.com"]
[Date "2023.09.05"]
[Round "6"]
[White "AttilaTurzo"]
[Black "milovichalex"]
[Result "0-1"]
[WhiteElo "2520"]
[BlackElo "2295"]
[TimeControl "180+1"]
[EndTime "9:06:06 PDT"]
[Termination "milovichalex won by checkmate"]

1. d4 {[%clk 0:03:00.9]} 1... Nf6 {[%clk 0:02:56.5]} 2. Nf3 {[%clk 0:03:00.1]}
2... d5 {[%clk 0:02:56.4]} 3. Bf4 {[%clk 0:02:59.8]} 3... c5 {[%clk 0:02:56.3]}
4. e3 {[%clk 0:03:00]} 4... Nc6 {[%clk 0:02:56.6]} 5. Nbd2 {[%clk 0:02:59.6]}
5... Qb6 {[%clk 0:02:55.2]} 6. dxc5 {[%clk 0:02:56.4]} 6... Qxc5 {[%clk
0:02:55.1]} 7. c4 {[%clk 0:02:52]} 7... d4 {[%clk 0:02:33]} 8. a3 {[%clk
0:02:41.7]} 8... dxe3 {[%clk 0:02:30.4]} 9. Bxe3 {[%clk 0:02:41.5]} 9... Qf5
{[%clk 0:02:12.2]} 10. h3 {[%clk 0:02:27.1]} 10... h6 {[%clk 0:01:52]} 11. Be2
{[%clk 0:02:23.1]} 11... e5 {[%clk 0:01:50.9]} 12. O-O {[%clk 0:02:22.5]} 12...
Be7 {[%clk 0:01:46]} 13. b4 {[%clk 0:02:19.7]} 13... O-O {[%clk 0:01:41]} 14. b5
{[%clk 0:02:14]} 14... Na5 {[%clk 0:01:18]} 15. Qa4 {[%clk 0:02:08]} 15... b6
{[%clk 0:01:15.9]} 16. c5 {[%clk 0:02:08.6]} 16... e4 {[%clk 0:01:10.6]} 17. Nd4
{[%clk 0:02:01.5]} 17... Qxc5 {[%clk 0:00:59.8]} 18. Ne6 {[%clk 0:01:50.3]}
18... Qe5 {[%clk 0:00:49.1]} 19. Nxf8 {[%clk 0:01:46.2]} 19... Bxf8 {[%clk
0:00:49.2]} 20. Nc4 {[%clk 0:01:39.1]} 20... Nxc4 {[%clk 0:00:47.4]} 21. Bxc4
{[%clk 0:01:40]} 21... Bd6 {[%clk 0:00:46.6]} 22. g3 {[%clk 0:01:29.3]} 22...
Qh5 {[%clk 0:00:41.3]} 23. Rfe1 {[%clk 0:01:20.4]} 23... Bxh3 {[%clk 0:00:40]}
24. Bd4 {[%clk 0:00:48.9]} 24... Bg4 {[%clk 0:00:32.4]} 25. Bxf6 {[%clk
0:00:38]} 25... gxf6 {[%clk 0:00:27.7]} 26. Bf1 {[%clk 0:00:31.7]} 26... Bf3
{[%clk 0:00:19.2]} 27. Bg2 {[%clk 0:00:32]} 27... Be5 {[%clk 0:00:17.1]} 28.
Rac1 {[%clk 0:00:23.3]} 28... Rd8 {[%clk 0:00:15.7]} 29. Bxf3 {[%clk 0:00:20.3]}
29... exf3 {[%clk 0:00:14.7]} 30. Qe4 {[%clk 0:00:18.2]} 30... Rd4 {[%clk
0:00:12.1]} 31. Qe3 {[%clk 0:00:16.1]} 31... Rh4 {[%clk 0:00:09.9]} 32. Qxf3
{[%clk 0:00:04.6]} 32... Qxf3 {[%clk 0:00:08]} 33. g4 {[%clk 0:00:05.2]} 33...
Rh1# {[%clk 0:00:07]} 0-1

[Event "Early-Titled-Tuesday-Blitz-September-05-2023"]
[Site "Chess.com"]
[Date "2023.09.05"]
[Round "6"]
[White "ElenaPershina"]
[Black "HanSchut"]
[Result "1-0"]
[WhiteElo "2320"]
[BlackElo "2233"]
[TimeControl "180+1"]
[EndTime "9:06:09 PDT"]
[Termination "ElenaPershina won by checkmate"]

1. c4 {[%clk 0:03:00.9]} 1... Nf6 {[%clk 0:02:59.5]} 2. g3 {[%clk 0:02:59.4]}
2... g6 {[%clk 0:02:59.4]} 3. Bg2 {[%clk 0:02:59.4]} 3... d5 {[%clk 0:03:00.2]}
4. cxd5 {[%clk 0:02:57.2]} 4... Nxd5 {[%clk 0:03:01.1]} 5. d4 {[%clk 0:02:47.8]}
5... Bg7 {[%clk 0:02:56.7]} 6. Nc3 {[%clk 0:02:44.2]} 6... Nb6 {[%clk
0:02:46.1]} 7. Nf3 {[%clk 0:02:42.8]} 7... Nc6 {[%clk 0:02:44.4]} 8. e3 {[%clk
0:02:40.7]} 8... O-O {[%clk 0:02:43.8]} 9. O-O {[%clk 0:02:40.4]} 9... Re8
{[%clk 0:02:40.1]} 10. Re1 {[%clk 0:02:38.8]} 10... e5 {[%clk 0:02:38.5]} 11. d5
{[%clk 0:02:37.3]} 11... Ne7 {[%clk 0:02:25.4]} 12. e4 {[%clk 0:02:31.1]} 12...
c6 {[%clk 0:02:14.6]} 13. d6 {[%clk 0:02:27.1]} 13... Nf5 {[%clk 0:02:00]} 14.
exf5 {[%clk 0:02:26.2]} 14... gxf5 {[%clk 0:01:58.7]} 15. Bg5 {[%clk 0:02:21.7]}
15... f6 {[%clk 0:01:58.2]} 16. Be3 {[%clk 0:02:20.4]} 16... Be6 {[%clk
0:01:51.8]} 17. b3 {[%clk 0:02:09.2]} 17... Nd5 {[%clk 0:01:50.5]} 18. Nxd5
{[%clk 0:01:54.2]} 18... cxd5 {[%clk 0:01:45.9]} 19. Bc5 {[%clk 0:01:42.9]}
19... Bf8 {[%clk 0:01:31.5]} 20. Nxe5 {[%clk 0:01:19]} 20... fxe5 {[%clk
0:01:27.7]} 21. Rxe5 {[%clk 0:01:17]} 21... Bxd6 {[%clk 0:01:07.4]} 22. Rxe6
{[%clk 0:00:55.7]} 22... Rxe6 {[%clk 0:01:00.9]} 23. Bxd5 {[%clk 0:00:54.3]}
23... Bxc5 {[%clk 0:01:01.3]} 24. Bxe6+ {[%clk 0:00:53.9]} 24... Kh8 {[%clk
0:00:57.5]} 25. Bxf5 {[%clk 0:00:43.1]} 25... Qf6 {[%clk 0:00:50.4]} 26. g4
{[%clk 0:00:29.6]} 26... Rd8 {[%clk 0:00:49.3]} 27. Qe1 {[%clk 0:00:18.1]} 27...
Bb4 {[%clk 0:00:35.6]} 28. Qf1 {[%clk 0:00:15.3]} 28... Rd2 {[%clk 0:00:33]} 29.
Rd1 {[%clk 0:00:14.3]} 29... Rxa2 {[%clk 0:00:29.8]} 30. Qc4 {[%clk 0:00:09.9]}
30... Qb2 {[%clk 0:00:18]} 31. Rd8+ {[%clk 0:00:07.2]} 31... Kg7 {[%clk
0:00:18.1]} 32. Qg8+ {[%clk 0:00:06.5]} 32... Kh6 {[%clk 0:00:18.6]} 33. g5+
{[%clk 0:00:04.5]} 33... Kh5 {[%clk 0:00:18.9]} 34. Qxh7+ {[%clk 0:00:04.2]}
34... Kxg5 {[%clk 0:00:18.7]} 35. Qg6+ {[%clk 0:00:04.4]} 35... Kf4 {[%clk
0:00:16.5]} 36. Qg4+ {[%clk 0:00:04.5]} 36... Ke5 {[%clk 0:00:17.1]} 37. Qe4+
{[%clk 0:00:04.3]} 37... Kf6 {[%clk 0:00:16.7]} 38. Qe6+ {[%clk 0:00:02.8]}
38... Kg5 {[%clk 0:00:14.6]} 39. Rg8+ {[%clk 0:00:03.3]} 39... Kf4 {[%clk
0:00:11.6]} 40. Qe4# {[%clk 0:00:03.7]} 1-0

[Event "Early-Titled-Tuesday-Blitz-September-05-2023"]
[Site "Chess.com"]
[Date "2023.09.05"]
[Round "6"]
[White "Zarinur"]
[Black "Agibileg"]
[Result "0-1"]
[WhiteElo "2521"]
[BlackElo "2669"]
[TimeControl "180+1"]
[EndTime "9:06:10 PDT"]
[Termination "Agibileg won on time"]

1. e4 {[%clk 0:03:00.9]} 1... c5 {[%clk 0:03:00]} 2. Nf3 {[%clk 0:02:55.6]} 2...
e6 {[%clk 0:02:59.7]} 3. g3 {[%clk 0:02:53.5]} 3... d5 {[%clk 0:02:58.8]} 4.
exd5 {[%clk 0:02:54.4]} 4... exd5 {[%clk 0:02:59.7]} 5. d4 {[%clk 0:02:53.2]}
5... Bg4 {[%clk 0:02:59.2]} 6. Bg2 {[%clk 0:02:52.3]} 6... Nc6 {[%clk
0:02:58.7]} 7. O-O {[%clk 0:02:51.7]} 7... Nxd4 {[%clk 0:02:58]} 8. Qe1+ {[%clk
0:02:51.5]} 8... Be7 {[%clk 0:02:42.2]} 9. Nxd4 {[%clk 0:02:44.1]} 9... cxd4
{[%clk 0:02:42]} 10. Qe5 {[%clk 0:02:42.8]} 10... Nf6 {[%clk 0:02:39]} 11. Qxd4
{[%clk 0:02:42.2]} 11... Be6 {[%clk 0:02:38]} 12. Nc3 {[%clk 0:02:32.3]} 12...
O-O {[%clk 0:02:34.4]} 13. Rd1 {[%clk 0:02:29.7]} 13... Rc8 {[%clk 0:02:33.9]}
14. Bg5 {[%clk 0:02:23]} 14... Bc5 {[%clk 0:02:23.2]} 15. Qf4 {[%clk 0:02:17.4]}
15... Be7 {[%clk 0:01:45]} 16. Rab1 {[%clk 0:01:54.3]} 16... Qa5 {[%clk
0:01:36.8]} 17. a3 {[%clk 0:01:19.6]} 17... h6 {[%clk 0:01:27.1]} 18. Bxf6
{[%clk 0:01:12.4]} 18... Bxf6 {[%clk 0:01:28]} 19. Nxd5 {[%clk 0:01:12.2]} 19...
Bg5 {[%clk 0:01:06.4]} 20. Qb4 {[%clk 0:00:53.3]} 20... Qxb4 {[%clk 0:01:04.5]}
21. Nxb4 {[%clk 0:00:53.7]} 21... a5 {[%clk 0:01:02.9]} 22. Nd3 {[%clk
0:00:24.2]} 22... Rxc2 {[%clk 0:01:02.9]} 23. Bxb7 {[%clk 0:00:24.1]} 23... Rb8
{[%clk 0:00:55.9]} 24. Bf3 {[%clk 0:00:17.4]} 24... a4 {[%clk 0:00:49.4]} 25.
Nb4 {[%clk 0:00:15.5]} 25... Rc7 {[%clk 0:00:42.1]} 26. h4 {[%clk 0:00:15.9]}
26... Bf6 {[%clk 0:00:40.5]} 27. Na6 {[%clk 0:00:15.8]} 27... Rcc8 {[%clk
0:00:35.3]} 28. Nxb8 {[%clk 0:00:15.9]} 28... Rxb8 {[%clk 0:00:36.2]} 29. Bd5
{[%clk 0:00:14]} 29... Bf5 {[%clk 0:00:31.9]} 30. Rbc1 {[%clk 0:00:14.1]} 30...
Bxb2 {[%clk 0:00:29]} 31. Rc7 {[%clk 0:00:14.5]} 31... Bg6 {[%clk 0:00:26.3]}
32. g4 {[%clk 0:00:08.3]} 32... h5 {[%clk 0:00:25.3]} 33. gxh5 {[%clk
0:00:06.7]} 33... Bxh5 {[%clk 0:00:26.2]} 34. Re1 {[%clk 0:00:03.9]} 34... Bxa3
{[%clk 0:00:24.5]} 35. Ra1 {[%clk 0:00:02.8]} 35... Bd6 {[%clk 0:00:22.8]} 36.
Rxa4 {[%clk 0:00:03.2]} 36... Bxc7 {[%clk 0:00:22.5]} 0-1

[Event "Early-Titled-Tuesday-Blitz-September-05-2023"]
[Site "Chess.com"]
[Date "2023.09.05"]
[Round "6"]
[White "aranibos"]
[Black "falzehope0"]
[Result "0-1"]
[WhiteElo "2262"]
[BlackElo "2456"]
[TimeControl "180+1"]
[EndTime "9:06:11 PDT"]
[Termination "falzehope0 won by resignation"]

1. d4 {[%clk 0:03:00.9]} 1... e6 {[%clk 0:02:59.1]} 2. Nf3 {[%clk 0:02:58.9]}
2... d5 {[%clk 0:02:59.2]} 3. Bf4 {[%clk 0:02:56.2]} 3... Bd6 {[%clk 0:02:56.9]}
4. Bg3 {[%clk 0:02:55.8]} 4... Ne7 {[%clk 0:02:56.4]} 5. e3 {[%clk 0:02:55]}
5... O-O {[%clk 0:02:53.8]} 6. Bd3 {[%clk 0:02:53.6]} 6... f5 {[%clk 0:02:53.7]}
7. Ne5 {[%clk 0:02:46.7]} 7... Bxe5 {[%clk 0:02:52.4]} 8. Bxe5 {[%clk
0:02:45.2]} 8... Ng6 {[%clk 0:02:52.5]} 9. f4 {[%clk 0:02:41.5]} 9... c5 {[%clk
0:02:50]} 10. c3 {[%clk 0:02:40.4]} 10... Nc6 {[%clk 0:02:48.4]} 11. O-O {[%clk
0:02:40.5]} 11... cxd4 {[%clk 0:02:47.8]} 12. exd4 {[%clk 0:02:39.8]} 12...
Ncxe5 {[%clk 0:02:45.9]} 13. fxe5 {[%clk 0:02:38.5]} 13... Qg5 {[%clk
0:02:37.8]} 14. Qd2 {[%clk 0:02:31.5]} 14... Qh4 {[%clk 0:02:14.9]} 15. g3
{[%clk 0:02:27.3]} 15... Qh3 {[%clk 0:02:07]} 16. Qg2 {[%clk 0:02:25.8]} 16...
Qh6 {[%clk 0:02:05.6]} 17. Kh1 {[%clk 0:02:17.7]} 17... Bd7 {[%clk 0:02:04.6]}
18. Nd2 {[%clk 0:02:00.7]} 18... b5 {[%clk 0:02:01.1]} 19. Qe2 {[%clk
0:01:57.7]} 19... a6 {[%clk 0:01:58.5]} 20. Nf3 {[%clk 0:01:51.7]} 20... Be8
{[%clk 0:01:52.7]} 21. a4 {[%clk 0:01:48.2]} 21... Rb8 {[%clk 0:01:51.9]} 22.
axb5 {[%clk 0:01:47.2]} 22... axb5 {[%clk 0:01:52.8]} 23. Ra6 {[%clk 0:01:44.1]}
23... Bd7 {[%clk 0:01:48.9]} 24. Rd6 {[%clk 0:01:41]} 24... Rb7 {[%clk
0:01:47.7]} 25. h4 {[%clk 0:01:37.8]} 25... Ne7 {[%clk 0:01:40.2]} 26. Ng5
{[%clk 0:01:36.8]} 26... Nc8 {[%clk 0:01:37.6]} 27. Ra6 {[%clk 0:01:34.1]} 27...
Qg6 {[%clk 0:01:34]} 28. Kh2 {[%clk 0:01:30.5]} 28... h6 {[%clk 0:01:33.4]} 29.
Nh3 {[%clk 0:01:31]} 29... b4 {[%clk 0:01:28.3]} 30. Nf4 {[%clk 0:01:29.5]}
30... Qe8 {[%clk 0:01:26.6]} 31. h5 {[%clk 0:01:26.1]} 31... bxc3 {[%clk
0:01:25.6]} 32. bxc3 {[%clk 0:01:25.6]} 32... Nb6 {[%clk 0:01:25.2]} 33. Ng6
{[%clk 0:01:24.9]} 33... Rf7 {[%clk 0:01:22.7]} 34. Ra2 {[%clk 0:01:17.9]} 34...
Nc4 {[%clk 0:01:22]} 35. Bxc4 {[%clk 0:01:17.5]} 35... dxc4 {[%clk 0:01:22.9]}
36. g4 {[%clk 0:01:15.3]} 36... fxg4 {[%clk 0:01:16.7]} 37. Rxf7 {[%clk
0:01:14.7]} 37... Qxf7 {[%clk 0:01:16.5]} 38. Qxg4 {[%clk 0:01:15.3]} 38... Rb1
{[%clk 0:00:31.8]} 39. Ra8+ {[%clk 0:01:07.9]} 39... Be8 {[%clk 0:00:31.3]} 40.
Nf4 {[%clk 0:01:07.9]} 40... Kh7 {[%clk 0:00:23.7]} 41. Kg2 {[%clk 0:00:48.1]}
41... Bc6+ {[%clk 0:00:23]} 42. Kh2 {[%clk 0:00:39.2]} 42... Bxa8 {[%clk
0:00:21]} 43. Qg6+ {[%clk 0:00:34.8]} 43... Qxg6 {[%clk 0:00:20]} 44. hxg6+
{[%clk 0:00:35.1]} 44... Kg8 {[%clk 0:00:20.3]} 45. Nxe6 {[%clk 0:00:35.7]}
45... Rc1 {[%clk 0:00:16.9]} 46. Nc7 {[%clk 0:00:33.7]} 46... Be4 {[%clk
0:00:15.2]} 47. d5 {[%clk 0:00:30.3]} 47... Rxc3 {[%clk 0:00:13.2]} 48. d6
{[%clk 0:00:26]} 48... Bxg6 {[%clk 0:00:11.4]} 49. e6 {[%clk 0:00:25.3]} 49...
Rd3 {[%clk 0:00:11.5]} 50. d7 {[%clk 0:00:25.4]} 50... c3 {[%clk 0:00:11.4]} 51.
e7 {[%clk 0:00:25.2]} 51... Rxd7 {[%clk 0:00:10.3]} 0-1

[Event "Early-Titled-Tuesday-Blitz-September-05-2023"]
[Site "Chess.com"]
[Date "2023.09.05"]
[Round "6"]
[White "KNVB"]
[Black "TatjanaVasilevich"]
[Result "1-0"]
[WhiteElo "2772"]
[BlackElo "2419"]
[TimeControl "180+1"]
[EndTime "9:06:13 PDT"]
[Termination "KNVB won by checkmate"]

1. d4 {[%clk 0:03:00.9]} 1... Nf6 {[%clk 0:02:44.1]} 2. Bf4 {[%clk 0:03:01]}
2... e6 {[%clk 0:02:43.7]} 3. e3 {[%clk 0:03:01.1]} 3... d5 {[%clk 0:02:44.1]}
4. Nf3 {[%clk 0:02:58.5]} 4... Bd6 {[%clk 0:02:44.6]} 5. Nbd2 {[%clk 0:02:59.4]}
5... b6 {[%clk 0:02:45]} 6. c3 {[%clk 0:02:59.4]} 6... Bb7 {[%clk 0:02:45.2]} 7.
Bd3 {[%clk 0:02:59.7]} 7... Ne4 {[%clk 0:02:45.6]} 8. O-O {[%clk 0:02:59.6]}
8... f5 {[%clk 0:02:45.4]} 9. Ne5 {[%clk 0:02:58.9]} 9... O-O {[%clk 0:02:45.1]}
10. f3 {[%clk 0:02:59.1]} 10... Nxd2 {[%clk 0:02:45.2]} 11. Qxd2 {[%clk
0:03:00]} 11... Nd7 {[%clk 0:02:45.7]} 12. Nxd7 {[%clk 0:03:00.5]} 12... Qxd7
{[%clk 0:02:45.9]} 13. Bxd6 {[%clk 0:03:01.1]} 13... cxd6 {[%clk 0:02:46.5]} 14.
f4 {[%clk 0:03:00.2]} 14... b5 {[%clk 0:02:46.5]} 15. Qe2 {[%clk 0:02:58.2]}
15... a6 {[%clk 0:02:46.7]} 16. g4 {[%clk 0:02:49.1]} 16... g6 {[%clk
0:02:45.9]} 17. h4 {[%clk 0:02:41.6]} 17... Kf7 {[%clk 0:02:42]} 18. h5 {[%clk
0:02:28.3]} 18... Rg8 {[%clk 0:02:37.7]} 19. Kf2 {[%clk 0:02:28.6]} 19... gxh5
{[%clk 0:02:30.5]} 20. g5 {[%clk 0:02:27.8]} 20... Rg6 {[%clk 0:02:27.5]} 21.
Rh1 {[%clk 0:02:26.3]} 21... Kg8 {[%clk 0:02:27.4]} 22. Rxh5 {[%clk 0:02:26.2]}
22... Bc6 {[%clk 0:02:27.5]} 23. Rah1 {[%clk 0:02:26.4]} 23... Ra7 {[%clk
0:02:23.7]} 24. Rh6 {[%clk 0:02:09.8]} 24... e5 {[%clk 0:02:06.8]} 25. Qh5
{[%clk 0:01:34.7]} 25... Qf7 {[%clk 0:01:42.9]} 26. Qh3 {[%clk 0:00:36.9]} 26...
e4 {[%clk 0:00:56.3]} 27. Be2 {[%clk 0:00:37.1]} 27... Rxh6 {[%clk 0:00:55.8]}
28. gxh6 {[%clk 0:00:33.6]} 28... Qf6 {[%clk 0:00:52.2]} 29. Rg1+ {[%clk
0:00:26.6]} 29... Kf8 {[%clk 0:00:40.7]} 30. Rg5 {[%clk 0:00:26.1]} 30... Rf7
{[%clk 0:00:13.4]} 31. Bh5 {[%clk 0:00:08.8]} 31... Qxh6 {[%clk 0:00:13.2]} 32.
Rxf5 {[%clk 0:00:09.3]} 32... Rxf5 {[%clk 0:00:13.6]} 33. Qxf5+ {[%clk
0:00:10.2]} 33... Ke7 {[%clk 0:00:14.1]} 34. Qf7+ {[%clk 0:00:06.7]} 34... Kd8
{[%clk 0:00:14.4]} 35. Kg3 {[%clk 0:00:02.9]} 35... Bd7 {[%clk 0:00:14.2]} 36.
Kh4 {[%clk 0:00:01.9]} 36... Qe6 {[%clk 0:00:13.2]} 37. Qxe6 {[%clk 0:00:02]}
37... Bxe6 {[%clk 0:00:13.6]} 38. Kg5 {[%clk 0:00:02.8]} 38... Ke7 {[%clk
0:00:14.1]} 39. f5 {[%clk 0:00:02.4]} 39... Bf7 {[%clk 0:00:13.6]} 40. f6+
{[%clk 0:00:01.9]} 40... Ke6 {[%clk 0:00:13.8]} 41. Bg4# {[%clk 0:00:02.4]} 1-0

[Event "Early-Titled-Tuesday-Blitz-September-05-2023"]
[Site "Chess.com"]
[Date "2023.09.05"]
[Round "6"]
[White "Larina_Maria"]
[Black "Zheenbekov86"]
[Result "0-1"]
[WhiteElo "2199"]
[BlackElo "2385"]
[TimeControl "180+1"]
[EndTime "9:06:13 PDT"]
[Termination "Zheenbekov86 won by checkmate"]

1. e4 {[%clk 0:03:00.9]} 1... e5 {[%clk 0:02:59.1]} 2. Nf3 {[%clk 0:02:58.1]}
2... Nc6 {[%clk 0:02:58.6]} 3. Nc3 {[%clk 0:02:58.8]} 3... Nf6 {[%clk
0:02:58.1]} 4. Bb5 {[%clk 0:02:58.9]} 4... Bb4 {[%clk 0:02:54.7]} 5. O-O {[%clk
0:02:58.5]} 5... O-O {[%clk 0:02:46]} 6. d3 {[%clk 0:02:58.4]} 6... Bxc3 {[%clk
0:02:45.3]} 7. bxc3 {[%clk 0:02:59]} 7... d6 {[%clk 0:02:44.4]} 8. Nd2 {[%clk
0:02:58.9]} 8... Ne7 {[%clk 0:02:41]} 9. d4 {[%clk 0:02:47.1]} 9... Ng6 {[%clk
0:02:39.3]} 10. dxe5 {[%clk 0:02:43.3]} 10... dxe5 {[%clk 0:02:38.7]} 11. Ba3
{[%clk 0:02:42.7]} 11... Ne7 {[%clk 0:02:26.5]} 12. Qe2 {[%clk 0:02:31.6]} 12...
c6 {[%clk 0:02:20]} 13. Ba4 {[%clk 0:02:21.3]} 13... Qc7 {[%clk 0:02:07.8]} 14.
c4 {[%clk 0:02:05.1]} 14... c5 {[%clk 0:02:06.5]} 15. Bb2 {[%clk 0:01:57.8]}
15... Be6 {[%clk 0:01:53.1]} 16. Nf3 {[%clk 0:01:44.9]} 16... Ng6 {[%clk
0:01:52.5]} 17. Rad1 {[%clk 0:01:35.3]} 17... Rad8 {[%clk 0:01:43.6]} 18. g3
{[%clk 0:01:23.1]} 18... Bg4 {[%clk 0:01:26.6]} 19. Qe3 {[%clk 0:01:16.8]} 19...
b6 {[%clk 0:01:23.9]} 20. c3 {[%clk 0:01:06.4]} 20... h6 {[%clk 0:01:17.8]} 21.
Bc2 {[%clk 0:01:05.6]} 21... Rxd1 {[%clk 0:00:55.1]} 22. Rxd1 {[%clk 0:01:05.3]}
22... Rd8 {[%clk 0:00:54.9]} 23. Rd3 {[%clk 0:01:04.2]} 23... Rxd3 {[%clk
0:00:48.7]} 24. Qxd3 {[%clk 0:01:05.1]} 24... Nf8 {[%clk 0:00:37]} 25. Kg2
{[%clk 0:01:01.2]} 25... Bxf3+ {[%clk 0:00:32.3]} 26. Qxf3 {[%clk 0:00:57.9]}
26... Ne6 {[%clk 0:00:31.9]} 27. Bc1 {[%clk 0:00:55.6]} 27... h5 {[%clk
0:00:30.2]} 28. Qf5 {[%clk 0:00:54.1]} 28... Qd7 {[%clk 0:00:28.5]} 29. h3
{[%clk 0:00:50.2]} 29... Qd6 {[%clk 0:00:25.6]} 30. Bh6 {[%clk 0:00:39.8]} 30...
gxh6 {[%clk 0:00:21.7]} 31. h4 {[%clk 0:00:31.5]} 31... Kg7 {[%clk 0:00:21.2]}
32. Kh3 {[%clk 0:00:31.1]} 32... Qd2 {[%clk 0:00:18.8]} 33. Qxe5 {[%clk
0:00:29.9]} 33... Qxc2 {[%clk 0:00:17.2]} 34. Qf5 {[%clk 0:00:28.1]} 34... Qxe4
{[%clk 0:00:15.6]} 35. Qxe4 {[%clk 0:00:25.3]} 35... Nxe4 {[%clk 0:00:15.5]} 36.
f3 {[%clk 0:00:26.2]} 36... Nxc3 {[%clk 0:00:15.3]} 37. g4 {[%clk 0:00:27.1]}
37... Nxa2 {[%clk 0:00:14.7]} 38. gxh5 {[%clk 0:00:27.1]} 38... a6 {[%clk
0:00:14.1]} 39. Kg4 {[%clk 0:00:28]} 39... b5 {[%clk 0:00:14.1]} 40. Kf5 {[%clk
0:00:28.9]} 40... bxc4 {[%clk 0:00:13.8]} 41. Ke5 {[%clk 0:00:29.8]} 41... c3
{[%clk 0:00:13.9]} 42. f4 {[%clk 0:00:30.7]} 42... c2 {[%clk 0:00:13.8]} 43. f5
{[%clk 0:00:31.6]} 43... c1=Q {[%clk 0:00:13.3]} 44. fxe6 {[%clk 0:00:32.5]}
44... Qe3+ {[%clk 0:00:13]} 45. Kd6 {[%clk 0:00:31.9]} 45... Qxe6+ {[%clk
0:00:12.8]} 46. Kxc5 {[%clk 0:00:32.8]} 46... Nc3 {[%clk 0:00:11.3]} 47. Kd4
{[%clk 0:00:32.8]} 47... Qd5+ {[%clk 0:00:10.9]} 48. Kxc3 {[%clk 0:00:33.7]}
48... a5 {[%clk 0:00:11.1]} 49. Kb2 {[%clk 0:00:33.6]} 49... a4 {[%clk
0:00:10.9]} 50. Ka3 {[%clk 0:00:34.5]} 50... Qb3# {[%clk 0:00:10.6]} 0-1

[Event "Early-Titled-Tuesday-Blitz-September-05-2023"]
[Site "Chess.com"]
[Date "2023.09.05"]
[Round "6"]
[White "frederiksvane"]
[Black "Virgo15"]
[Result "1-0"]
[WhiteElo "2929"]
[BlackElo "2706"]
[TimeControl "180+1"]
[EndTime "9:06:15 PDT"]
[Termination "frederiksvane won on time"]

1. c4 {[%clk 0:03:00.9]} 1... e6 {[%clk 0:02:57.2]} 2. Nc3 {[%clk 0:03:01.1]}
2... d5 {[%clk 0:02:57.8]} 3. d4 {[%clk 0:03:01.6]} 3... a6 {[%clk 0:02:58.1]}
4. cxd5 {[%clk 0:03:01.3]} 4... exd5 {[%clk 0:02:59]} 5. Bf4 {[%clk 0:03:01.8]}
5... Nf6 {[%clk 0:02:57.5]} 6. e3 {[%clk 0:03:02.3]} 6... Bd6 {[%clk 0:02:58]}
7. Bxd6 {[%clk 0:03:00.6]} 7... Qxd6 {[%clk 0:02:57.9]} 8. Bd3 {[%clk
0:03:01.3]} 8... O-O {[%clk 0:02:56.9]} 9. Nf3 {[%clk 0:03:01.8]} 9... Nc6
{[%clk 0:02:57.2]} 10. a3 {[%clk 0:02:51.6]} 10... Ne7 {[%clk 0:02:57.6]} 11.
Qc2 {[%clk 0:02:51.8]} 11... g6 {[%clk 0:02:57.8]} 12. O-O {[%clk 0:02:49.3]}
12... Bf5 {[%clk 0:02:58.2]} 13. b4 {[%clk 0:02:49.3]} 13... c6 {[%clk
0:02:56.8]} 14. Rab1 {[%clk 0:02:49.4]} 14... Bxd3 {[%clk 0:02:55.3]} 15. Qxd3
{[%clk 0:02:50.3]} 15... Nf5 {[%clk 0:02:55.7]} 16. a4 {[%clk 0:02:49.3]} 16...
b5 {[%clk 0:02:53.6]} 17. Rfc1 {[%clk 0:02:46]} 17... Qe6 {[%clk 0:02:40.9]} 18.
Ne2 {[%clk 0:02:40.7]} 18... bxa4 {[%clk 0:02:15.7]} 19. Qc2 {[%clk 0:02:19.7]}
19... a5 {[%clk 0:02:02.5]} 20. Qxa4 {[%clk 0:02:05]} 20... axb4 {[%clk
0:02:02.7]} 21. Qxb4 {[%clk 0:02:05.9]} 21... Ne4 {[%clk 0:01:56.1]} 22. Nf4
{[%clk 0:02:05.4]} 22... Qe8 {[%clk 0:01:43.2]} 23. Qb6 {[%clk 0:01:51.3]} 23...
Nxf2 {[%clk 0:01:30.2]} 24. Ne5 {[%clk 0:01:42.9]} 24... f6 {[%clk 0:01:17.8]}
25. Qxc6 {[%clk 0:01:03.8]} 25... fxe5 {[%clk 0:01:17.4]} 26. Qxd5+ {[%clk
0:01:04.3]} 26... Qf7 {[%clk 0:01:02.7]} 27. dxe5 {[%clk 0:00:55.9]} 27... Qxd5
{[%clk 0:00:33]} 28. Nxd5 {[%clk 0:00:56.1]} 28... Nd3 {[%clk 0:00:22.8]} 29.
Rc7 {[%clk 0:00:48.6]} 29... Nxe5 {[%clk 0:00:23]} 30. e4 {[%clk 0:00:36.5]}
30... Nd4 {[%clk 0:00:17.6]} 31. h3 {[%clk 0:00:31]} 31... Rf7 {[%clk
0:00:17.5]} 32. Rxf7 {[%clk 0:00:26.7]} 32... Kxf7 {[%clk 0:00:16.4]} 33. Rb7+
{[%clk 0:00:26.8]} 33... Kf8 {[%clk 0:00:08.5]} 34. Rxh7 {[%clk 0:00:27.4]}
34... Ra2 {[%clk 0:00:07.2]} 35. Rb7 {[%clk 0:00:19.9]} 35... Ne2+ {[%clk
0:00:07.3]} 36. Kh2 {[%clk 0:00:19.8]} 36... Nd4 {[%clk 0:00:05.3]} 37. Kg3
{[%clk 0:00:20.2]} 37... Nc4 {[%clk 0:00:03.5]} 38. Rb4 {[%clk 0:00:19.8]} 38...
Ne2+ {[%clk 0:00:03]} 39. Kg4 {[%clk 0:00:19.7]} 39... Ne5+ {[%clk 0:00:02.1]}
40. Kg5 {[%clk 0:00:20.3]} 1-0